Cogmind - Beta 13 @@@ ROGUE MODE // 2024.03.25 @ 11:15:36 Player: Finestep Result: Self-destructed Performance ------------- Evolutions (8) 4000 Regions Visited (9) 1800 Robots Destroyed (227) 1135 Value Destroyed (7646) 7646 Prototype IDs (10) 200 Alien Tech Used (0) 0 Bonus (2248) 2248 TOTAL SCORE: 17029 Bonus ------- High Alert Combat Kills 2248 Cogmind --------- Core Integrity 1081/1450 Matter 8/300 Energy 22/100 System Corruption 1% Temperature Cool (66) Movement Rolling (90) Location -2/Research Parts ------- > --- POWER (2) -------- (None) > --- PROPULSION (6) --- Centrium Wheel Centrium Wheel > --- UTILITY (13) ----- Advanced Weight Redist. System Advanced Terrain Scan Processor Improved Target Analyzer Graphene Brace Improved Hacking Suite > --- WEAPON (2) ------- Enhanced Nova Cannon > --- INVENTORY (5) ---- Centrium Wheel Centrium Wheel Advanced Transmission Jammer Heavy Gauss Cannon Fusion Bomb Launcher Peak State ------------ > --- POWER ------------ Hybrid Fission Core Antimatter Reactor > --- PROPULSION ------- Heavy Treads Armored Huge Wheel > --- UTILITY ---------- Large Storage Unit Active Sensor Suite Advanced Targeting Computer Core Analyzer Improved Weapon Cycler Advanced Transmission Jammer Improved Utility Shielding Hardened Heavy Armor Plating > --- WEAPON ----------- Cooled Particle Cannon Micro-nuke Launcher > --- INVENTORY -------- Heavy Treads Advanced Cooling System High-capacity Matter Pod Improved Transmission Jammer Layered Heavy Armor Plating Graphene Brace Advanced Shield Generator Improved Hacking Suite Advanced Hacking Suite HERF Cannon Enhanced Gauss Cannon Heavy Gauss Cannon Hypervelocity Mass Driver [Rating: 111] Favorites ----------- Power Heavy Ion Engine Engine Heavy Ion Engine Power Core Hybrid Fission Core Reactor Antimatter Reactor Propulsion Armored Wheel Treads Improved Treads Leg Aluminum Leg Wheel Armored Wheel Flight Unit Cooled Field Propulsion Drive Utility Large Storage Unit Device Active Sensor Suite Storage Large Storage Unit Processor Core Analyzer Hackware Improved Hacking Suite Protection Improved Utility Shielding Weapon Enhanced Autogun Energy Gun Improved EM Shotgun Energy Cannon Cooled Particle Cannon Ballistic Gun Enhanced Autogun Ballistic Cannon Enhanced Gauss Cannon Launcher Micro-nuke Launcher Build | -11 -10 -9 -8 -7 -6 -5 -4 -3 -2 ------- Run | Yrd Mat Mat Mat Fac Fac Fac Fac Res Res Slots Evolved 16 | . . 2 2 2 2 2 2 2 2 Power 1 | . . . . . . 1 . . . Propulsion 4 | . . 1 . . 1 . . 1 1 Utility 11 | . . 1 2 2 1 1 2 1 1 Weapon . | . . . . . . . . . . Parts Attached 172 | 6 7 15 30 17 36 17 34 4 6 Power 17 | 1 . 3 . 1 2 5 4 . 1 Engine 10 | 1 . 3 . 1 1 2 2 . . Core 6 | . . . . . 1 3 1 . 1 Reactor 1 | . . . . . . . 1 . . Propulsion 39 | 2 2 3 10 3 8 4 3 2 2 Treads 23 | . 2 2 7 3 5 3 1 . . Leg 2 | 2 . . . . . . . . . Wheel 10 | . . 1 3 . 3 1 . . 2 Hover . | . . . . . . . . . . Flight 4 | . . . . . . . 2 2 . Utility 56 | 1 3 2 9 4 10 7 18 2 . Device 25 | . 1 . 3 2 5 3 9 2 . Storage 7 | 1 2 . . . . 1 3 . . Processor 6 | . . 1 2 . . 1 2 . . Hackware 2 | . . . . . . . 2 . . Protection 16 | . . 1 4 2 5 2 2 . . Artifact . | . . . . . . . . . . Weapon 60 | 2 2 7 11 9 16 1 9 . 3 Energy Gun 5 | . . 2 3 . . . . . . Energy Cannon 21 | . . 1 5 2 7 . 3 . 3 Ballistic Gun 27 | 2 2 4 3 5 9 . 2 . . Ballistic Cannon 3 | . . . . . . 1 2 . . Launcher 4 | . . . . 2 . . 2 . . Special Weapon . | . . . . . . . . . . Impact Weapon . | . . . . . . . . . . Slashing Weapon . | . . . . . . . . . . Piercing Weapon . | . . . . . . . . . . Special Melee Weapon . | . . . . . . . . . . Unidentified Prototypes 9 | . . 3 2 2 1 . . 1 . Parts Lost 42 | . . . 5 2 11 2 18 1 3 Power 6 | . . . . 1 . 1 3 . 1 Propulsion 15 | . . . 3 1 5 . 5 1 . Utility 13 | . . . 2 . 3 1 6 . 1 Weapon 8 | . . . . . 3 . 4 . 1 Highest Loss Streak 14 | . . . 2 1 4 2 14 1 2 To Critical Strikes . | . . . . . . . . . . Average Slot Usage (%) 83 | . 90 99 97 83 82 78 64 29 37 Engine 7 | . 14 11 9 6 5 4 . . . Core 1 | . . . . . . 5 4 . 2 Treads 13 | . 14 23 18 15 13 10 4 . . Leg 1 | . 14 . . . . . . . . Wheel 6 | . . 9 8 6 11 5 4 . 5 Device 8 | . 5 5 7 7 7 12 13 10 12 Storage 7 | . 14 11 9 7 6 5 4 . . Processor 10 | . . 5 14 15 13 13 9 9 8 Protection 7 | . . 11 11 6 9 3 8 . . Energy Gun 1 | . . 1 5 . . . . . . Energy Cannon 3 | . . . 12 . 3 5 4 . 3 Ballistic Gun 9 | . 28 20 . 14 9 2 . . . Naked Turns 2 | . . . . . . . 2 . . Heaviest Build 92 | 12 30 39 56 51 70 87 92 4 29 Greatest Support 70 | 20 46 69 63 68 70 28 28 27 32 Greatest Overweight (x) 4 | 1 . 3 4 3 4 3 3 . 4 Average Overweight (x) 1 | . . 1 3 2 1 2 1 . . Largest Inventory Capacity 15 | 8 15 15 15 15 15 15 15 5 5 Average Capacity 13 | 7 11 15 15 15 15 15 13 5 5 Most Carried 15 | 6 15 15 15 15 15 15 15 5 5 Average Carried 12 | 5 10 14 14 14 14 14 13 5 4 Final Capacity 15 | 8 15 15 15 15 15 15 5 5 5 Final Carried 15 | 6 15 15 15 15 12 15 5 5 5 Class Distribution -------------------- 51% | Mutant 36% | Skirmisher 12% | Scavenger-Skirmisher Dominant Class ---------------- Mutant | -10/Materials Mutant | -9/Materials Mutant | -8/Materials Skirmisher | -7/Factory Skirmisher | -6/Factory Scavenger-Skirmisher | -5/Factory Skirmisher | -4/Factory Mutant | -3/Research Mutant | -2/Research Resources | -11 -10 -9 -8 -7 -6 -5 -4 -3 -2 ----------- Run | Yrd Mat Mat Mat Fac Fac Fac Fac Res Res Matter Collected 5233 | 260 739 642 270 1061 1145 394 682 6 34 Remotely . | . . . . . . . . . . Salvage Created 9915 | 68 639 927 2245 1421 2054 881 1532 . 148 Parts 501 | 8 38 68 117 80 100 34 53 . 3 Haulers Intercepted 18 | . 1 5 6 2 . 3 1 . . Recyclers Shooed 15 | . 4 . 2 4 5 . . . . Parts Field Recycled . | . . . . . . . . . . Retrieved Matter . | . . . . . . . . . . Parts Self-Destructed . | . . . . . . . . . . Prevented . | . . . . . . . . . . Kills | -11 -10 -9 -8 -7 -6 -5 -4 -3 -2 ------- Run | Yrd Mat Mat Mat Fac Fac Fac Fac Res Res Combat Hostiles Destroyed 142 | . 13 13 31 21 28 10 26 . . Melee 1 | . . . 1 . . . . . . Guns 73 | . 13 13 11 18 17 1 . . . Cannons 45 | . . . 16 . 11 9 9 . . AOE 19 | . . . . 3 . . 16 . . Classes Destroyed 20 | 2 5 1 7 2 . 1 2 . . Worker 12 | . . . 2 4 . . 6 . . Builder 10 | . . . 4 . . . 6 . . Tunneler 3 | 1 1 1 . . . . . . . Hauler 18 | . 1 5 6 2 . 3 1 . . Recycler 18 | 1 1 . 3 3 5 . 4 . 1 Mechanic 2 | . . . . . . 1 1 . . Operator 7 | . 2 1 1 1 1 1 . . . Watcher 15 | . 2 3 3 3 . 1 2 . 1 Swarmer 20 | . 6 . 4 3 7 . . . . Cutter 3 | . . . 3 . . . . . . Saboteur 1 | . . . . . . . 1 . . Grunt 74 | . 7 9 15 13 12 5 13 . . Brawler 2 | . . . 1 . . . 1 . . Duelist 6 | . . . . 1 . . 5 . . Protector 1 | . . . . . . . 1 . . Sentry 14 | . . 4 4 2 2 2 . . . Specialist 7 | . . . 2 . 3 . 2 . . Hunter 4 | . . . 1 . 1 . 2 . . Programmer 7 | . . . . 2 2 2 1 . . Heavy 3 | . . . 1 . 1 1 . . . Best Kill Streak 29 | 2 5 6 11 9 6 3 29 . 1 Combat Bots Only 11 | . 5 3 4 5 5 3 11 . . Max Kills in Single Turn 5 | 1 2 1 2 2 2 1 5 . 1 Gunslinging 1 | . 1 . . . . . . . . Exploded 3 | . . . . 2 . . 3 . . Melee 1 | . . . 1 . . . . . . Uniques/NPCs Destroyed . | . . . . . . . . . . Combat | -11 -10 -9 -8 -7 -6 -5 -4 -3 -2 -------- Run | Yrd Mat Mat Mat Fac Fac Fac Fac Res Res Hostile Shots Fired 1114 | . 44 44 155 144 252 51 343 30 51 Missed 357 | . 14 13 47 51 68 20 107 18 19 Damage Taken 13887 | . 305 415 2007 1042 2892 1008 5013 365 840 Core 2430 | . 40 42 358 140 466 33 728 254 369 Absorbed by Shields 121 | . . . . . . 37 84 . . Reduced by Siege Mode 264 | . . . . . . . 264 . . Redirected to Shielding 230 | . . . . 6 103 . 121 . . Ignored by Resistances 161 | . . . . . 161 . . . . Regen/Repaired (Parts) 344 | . . . 82 262 . . . . . Core Remaining (%) 71 | 100 84 89 34 80 45 96 36 80 . Volleys Fired 632 | 6 76 54 103 105 149 60 67 . 12 Largest 2 | 2 2 2 2 2 2 2 2 . 1 Hottest 136 | 40 46 90 136 55 120 87 88 . 120 Shots Fired 1169 | 12 152 108 206 200 271 115 93 . 12 Gun 700 | 12 152 108 66 182 158 22 . . . Cannon 448 | . . . 140 12 113 93 78 . 12 Launcher 21 | . . . . 6 . . 15 . . Special . | . . . . . . . . . . Kinetic 708 | 12 152 106 . 182 158 60 38 . . Thermal 356 | . . . 140 12 113 55 33 . 3 Explosive 21 | . . . . 6 . . 15 . . Electromagnetic 84 | . . 2 66 . . . 7 . 9 Robot Hit Streak 21 | 3 11 13 15 21 12 17 12 . 9 Robot Miss Streak 6 | 2 5 3 4 3 6 3 2 . 4 Penetration Max 2 | . . . . . 2 1 1 . . Secondary Targets 8 | . 1 1 2 1 3 . . . . Max Gunslinging Chain 1 | . 1 1 1 1 1 . . . . Shots Hit Robots 744 | 8 90 64 161 134 155 73 52 . 7 Core Hits 426 | 3 29 32 78 64 75 31 112 . 2 Critical Kills 10 | . 1 . 1 1 1 . 6 . . Critical Parts Destroyed 5 | . . . . 1 . . 4 . . Critical Strikes 22 | . 1 . 1 2 1 2 15 . . Meltdown 2 | . . . 1 . . . 1 . . Destroy 13 | . 1 . . 2 1 . 9 . . Blast 7 | . . . . . . 2 5 . . Melee Attacks . | . . . . . . . . . . Impact . | . . . . . . . . . . Slashing . | . . . . . . . . . . Piercing . | . . . . . . . . . . Sneak Attacks . | . . . . . . . . . . Combat Hostiles . | . . . . . . . . . . Follow-up Attacks . | . . . . . . . . . . Damage Inflicted 21200 | 94 1227 1093 3464 2776 3686 2146 6373 . 341 Guns 8230 | 94 1224 1093 974 2271 2206 368 . . . Cannons 7434 | . . . 2277 140 1480 1778 1418 . 341 Explosions 5524 | . . . 204 365 . . 4955 . . Melee . | . . . . . . . . . . Ramming 12 | . 3 . 9 . . . . . . Kinetic 8850 | 94 1224 1058 . 2271 2206 1335 662 . . Thermal 5507 | . . . 2481 140 1480 811 489 . 106 Explosive 5320 | . . . . 365 . . 4955 . . Electromagnetic 1511 | . . 35 974 . . . 267 . 235 Impact . | . . . . . . . . . . Slashing . | . . . . . . . . . . Piercing . | . . . . . . . . . . Highest Corruption 3 | . . . . 3 3 1 3 . 1 Average Corruption 1 | . . . . 1 2 1 1 . 1 Corruption Purged . | . . . . . . . . . . Corruption Blocked . | . . . . . . . . . . Effects 43 | . . . . 17 22 1 3 . . Message Errors 6 | . . . . 1 4 . 1 . . Matter Fused 13 | . . . . 5 6 . 2 . . Heat Flow Errors 7 | . . . . 2 4 1 . . . Energy Discharges 4 | . . . . 2 2 . . . . Parts Rejected 1 | . . . . . 1 . . . . Data Loss (minor) 7 | . . . . 4 3 . . . . Data Loss (major) 2 | . . . . 2 . . . . . Misfires 1 | . . . . . 1 . . . . Weapon Failures 2 | . . . . 1 1 . . . . Overload Shots 3 | . . . . . 3 . . . . Effects 1 | . . . . . 1 . . . . Short Circuit 1 | . . . . . 1 . . . . Overflow Damage 210 | . . . 3 . 9 4 160 . 34 Projectiles 100 | . . . . . 9 4 53 . 34 Explosions 110 | . . . 3 . . . 107 . . Melee . | . . . . . . . . . . Knockbacks 5 | . . . . . . 1 4 . . Impact . | . . . . . . . . . . Kinetic 5 | . . . . . . 1 4 . . Secondary . | . . . . . . . . . . Self-Inflicted Damage 134 | . . . . 41 . . 93 . . Shots 3 | . . . . 1 . . 2 . . Rammed 1 | . 1 . . . . . . . . Targets Rammed 2 | . 1 . 1 . . . . . . Kicked . | . . . . . . . . . . Crushed 1 | . . . 1 . . . . . . Highest Temperature 324 | . 24 42 324 264 240 277 274 . 66 Average Temperature 53 | . 7 12 85 34 52 62 60 . 19 Received Heat Transfer 2845 | . 96 147 702 402 816 105 541 . 36 Effects 5 | . . . 4 . . . 1 . . Energy Bleed 2 | . . . 2 . . . . . . Interference 3 | . . . 2 . . . 1 . . Siege Activations 2 | . . . . . . . 2 . . Total Turns 43 | . . . . . . . 43 . . Longest Duration 30 | . . . . . . . 30 . . Robots Corrupted 3 | . . . 2 . . . . . 1 Combat Hostiles 1 | . . . 1 . . . . . . Parts Fried 13 | . . . 9 . . . . . 4 Impact Corruptions . | . . . . . . . . . . Robots Melted 3 | . . . 2 . . . 1 . . Combat Hostiles 3 | . . . 2 . . . 1 . . Parts Melted 8 | . . . 8 . . . . . . Heat Transferred 8170 | . . . 4246 185 1998 1110 557 . 74 Parts Sabotaged . | . . . . . . . . . . Parts Stolen . | . . . . . . . . . . Parts Stripped . | . . . . . . . . . . Power Chain Reactions 2 | . . . 2 . . . . . . Alert | -11 -10 -9 -8 -7 -6 -5 -4 -3 -2 ------- Run | Yrd Mat Mat Mat Fac Fac Fac Fac Res Res Peak Influence 1276 | 10 298 262 710 876 1021 889 1276 674 450 Initial 564 | . . 47 96 284 429 499 394 564 378 Average 458 | 6 111 181 475 451 705 677 738 611 384 Maximum Alert Level 4 | . 1 1 3 3 3 3 4 2 2 Low Security (%) 24 | 100 87 53 12 7 . . . . . Level 1 18 | . 12 46 18 48 . . 1 . 60 Level 2 36 | . . . 57 22 61 52 56 100 39 Level 3 19 | . . . 10 20 38 47 33 . . Level 4 . | . . . . . . . 8 . . Level 5 . | . . . . . . . . . . High Security . | . . . . . . . . . . Max Security . | . . . . . . . . . . Squads Dispatched 61 | . 2 3 6 11 18 6 12 . 3 Investigation 23 | . . 2 1 4 7 3 5 . 1 Extermination 7 | . . . . 2 1 1 2 . 1 Reinforcement 24 | . 2 1 5 2 10 2 1 . 1 Assault 4 | . . . . . . . 4 . . Garrison 3 | . . . . 3 . . . . . Intercept . | . . . . . . . . . . Searches Triggered 2 | . . . . . 1 1 . . . Construction Impeded 1 | . . . . . 1 . . . . Haulers Reinforced 2 | . . . . 2 . . . . . Active Scanning Responses 13 | . . . . 3 5 3 2 . . Cargo Convoy Interrupts 1 | . . . . . 1 . . . . Stealth | -11 -10 -9 -8 -7 -6 -5 -4 -3 -2 --------- Run | Yrd Mat Mat Mat Fac Fac Fac Fac Res Res Distress Signals 7 | . 1 . . 2 . 1 3 . . Communications Jammed 22 | . . . . 2 . 18 2 . . Distress Signals 22 | . . . . 2 . 18 2 . . Times Spotted 263 | . 24 19 39 32 42 16 59 14 18 Peak Tracking Total 21 | . 3 3 4 4 6 3 21 8 11 Tactical Retreats 17 | . 1 . . 1 5 1 4 1 4 Traps | -11 -10 -9 -8 -7 -6 -5 -4 -3 -2 ------- Run | Yrd Mat Mat Mat Fac Fac Fac Fac Res Res Traps Triggered 8 | . . 2 . 2 2 . 1 . 1 Indirectly . | . . . . . . . . . . Trap Hack Attempts . | . . . . . . . . . . Triggered . | . . . . . . . . . . Disarmed . | . . . . . . . . . . Reprogrammed . | . . . . . . . . . . Reused . | . . . . . . . . . . Traps Extracted . | . . . . . . . . . . Installed . | . . . . . . . . . . Triggered 3 | . . . . . 3 . . . . Machines | -11 -10 -9 -8 -7 -6 -5 -4 -3 -2 ---------- Run | Yrd Mat Mat Mat Fac Fac Fac Fac Res Res Machines Disabled 9 | . 1 1 1 . 2 2 2 . . Max in Single Turn 1 | . 1 1 1 . 1 1 1 . . Garrison Access 4 | . . . 1 . 1 . 1 . 1 Machines Repaired . | . . . . . . . . . . Machines Dismantled . | . . . . . . . . . . Machines Sabotaged . | . . . . . . . . . . Overloaded Fab Kills . | . . . . . . . . . . Hacking | -11 -10 -9 -8 -7 -6 -5 -4 -3 -2 --------- Run | Yrd Mat Mat Mat Fac Fac Fac Fac Res Res Machines Accessed 48 | . 5 3 9 7 8 4 10 1 1 Terminals 36 | . 5 2 7 5 6 3 7 1 . Fabricators 4 | . . . . 1 1 1 1 . . Repair Stations 2 | . . . 1 1 . . . . . Recycling Units . | . . . . . . . . . . Scanalyzers 2 | . . 1 . . . . 1 . . Garrison Access 4 | . . . 1 . 1 . 1 . 1 Total Hacks 124 | . 15 12 25 16 17 5 31 1 2 Successful 50 | . 6 6 9 5 6 3 14 . 1 Failed 74 | . 9 6 16 11 11 2 17 1 1 Catastrophic 19 | . 3 1 3 3 3 2 4 . . Database Lockouts . | . . . . . . . . . . Manual 56 | . 13 3 13 2 9 1 15 . . Terminals 84 | . 15 5 18 8 12 3 22 1 . Fabricators 10 | . . . . 2 3 2 3 . . Repair Stations 9 | . . . 3 6 . . . . . Recycling Units . | . . . . . . . . . . Scanalyzers 10 | . . 7 . . . . 3 . . Garrison Access 11 | . . . 4 . 2 . 3 . 2 Terminal Hacks 20 | . 4 1 4 1 3 1 6 . . Part Schematic 1 | . . . . . . . 1 . . Robot Schematic 1 | . 1 . . . . . . . . Robot Analysis 1 | . . . 1 . . . . . . Level Access Points 1 | . . . . . . . 1 . . Branch Access Points 1 | . . . 1 . . . . . . Machine Index 1 | . . . . . . . 1 . . Terminal Index 1 | . 1 . . . . . . . . Alert Level 1 | . . . . 1 . . . . . Unreport Threat 5 | . . . 1 . 2 . 2 . . Locate Traps 2 | . 1 . 1 . . . . . . Security Status 1 | . . . . . . . 1 . . Hauler Manifests 2 | . . 1 . . . 1 . . . Zone Layout 2 | . 1 . . . 1 . . . . Fabricator Hacks 6 | . . . . 1 2 1 2 . . Load Schematic 4 | . . . . 1 1 1 1 . . Build 2 | . . . . . 1 . 1 . . Repair Station Hacks 5 | . . . 2 3 . . . . . Scan Component 3 | . . . 1 2 . . . . . Repair 2 | . . . 1 1 . . . . . Recycling Unit Hacks . | . . . . . . . . . . Scanalyzer 7 | . . 5 . . . . 2 . . Insert Component 3 | . . 2 . . . . 1 . . Analyze 4 | . . 3 . . . . 1 . . Garrison Access Hacks 1 | . . . . . . . . . 1 Seal Access 1 | . . . . . . . . . 1 Unauthorized Hacks 11 | . 2 . 3 . 1 1 4 . . Terminals 8 | . 2 . 2 . . 1 3 . . Track 1 | . 1 . . . . . . . . Assimilate 1 | . . . . . . 1 . . . Botnet 1 | . . . . . . . 1 . . Disrupt 3 | . . . 1 . . . 2 . . Operators 2 | . 1 . 1 . . . . . . Fabricators . | . . . . . . . . . . Repair Stations . | . . . . . . . . . . Recycling Units . | . . . . . . . . . . Scanalyzers . | . . . . . . . . . . Garrison Access 3 | . . . 1 . 1 . 1 . . Jam 3 | . . . 1 . 1 . 1 . . Data Cores Recovered 1 | . . . . 1 . . . . . Used . | . . . . . . . . . . Hacking Detections 46 | . 5 3 9 7 8 2 10 1 1 Full Trace Events 4 | . . . . 1 1 . 2 . . Feedback Events 1 | . . . . . . . 1 . . Corruption 1 | . . . . . . . 1 . . Feedback Blocked . | . . . . . . . . . . Robot Schematics Acquired 1 | . 1 . . . . . . . . Robots Built 1 | . . . . . . . 1 . . Authchips . | . . . . . . . . . . Time 81 | . . . . . . . 81 . . Total Robot Build Rating 1 | . . . . . . . 1 . . Part Schematics Acquired 4 | . . 2 . . . . 2 . . Parts Built 2 | . . . . . 2 . . . . Authchips . | . . . . . . . . . . Time 62 | . . . . . 62 . . . . Total Part Build Rating 4 | . . . . . 4 . . . . Parts Repaired 2 | . . . 1 1 . . . . . Time 54 | . . . 16 38 . . . . . Parts Recycled . | . . . . . . . . . . Recycled Matter . | . . . . . . . . . . Retrieved Matter . | . . . . . . . . . . Retrieved Components . | . . . . . . . . . . Parts Scanalyzed 3 | . . 2 . . . . 1 . . Part Schematics Acquired 3 | . . 2 . . . . 1 . . Parts Damaged 1 | . . . . . . . 1 . . Bothacking | -11 -10 -9 -8 -7 -6 -5 -4 -3 -2 ------------ Run | Yrd Mat Mat Mat Fac Fac Fac Fac Res Res Used RIF Installer . | . . . . . . . . . . Robots Hacked . | . . . . . . . . . . Non-combat . | . . . . . . . . . . Combat . | . . . . . . . . . . Robot Hacks Applied . | . . . . . . . . . . Relay Couplers Released . | . . . . . . . . . . Fabnet Peak Effective % . | . . . . . . . . . . Robots Rewired . | . . . . . . . . . . Allies Hacked . | . . . . . . . . . . Hacks Repelled . | . . . . . . . . . . Allies | -11 -10 -9 -8 -7 -6 -5 -4 -3 -2 -------- Run | Yrd Mat Mat Mat Fac Fac Fac Fac Res Res Total Allies 2 | . . . . . . 1 1 . . Largest Group 1 | . . . . . . 1 1 . . Highest-Rated Group 26 | . . . . . . 26 14 . . Highest-Rated Ally 26 | . . . . . . 26 14 . . Total Orders . | . . . . . . . . . . Ally Attacks . | . . . . . . . . . . Total Damage . | . . . . . . . . . . Kills . | . . . . . . . . . . Allies Corrupted . | . . . . . . . . . . Allies Melted . | . . . . . . . . . . Intel | -11 -10 -9 -8 -7 -6 -5 -4 -3 -2 ------- Run | Yrd Mat Mat Mat Fac Fac Fac Fac Res Res Robot Analysis Total 1 | . . . 1 . . . . . . Derelict Logs Recovered . | . . . . . . . . . . Drone Launches . | . . . . . . . . . . Drone Recoveries . | . . . . . . . . . . Exploration | -11 -10 -9 -8 -7 -6 -5 -4 -3 -2 ------------- Run | Yrd Mat Mat Mat Fac Fac Fac Fac Res Res Turns Passed 10865 | 561 1427 1007 1745 1403 1972 1120 1060 101 469 Spaces Moved 6351 | 272 793 647 848 686 1020 661 821 230 373 Core 83 | 8 . . . . . . 65 10 . Treads 625 | . 385 58 23 83 76 . . . . Legs 672 | 264 408 . . . . . . . . Wheels 4334 | . . 589 825 603 944 661 470 . 242 Hover . | . . . . . . . . . . Flight 637 | . . . . . . . 286 220 131 Fastest Speed 34 | 50 120 120 120 135 105 130 37 34 40 Average Speed 121 | 118 139 124 139 138 123 135 100 40 75 Slowest Speed 305 | 120 160 160 245 245 163 145 145 50 305 Overloaded Moves 11 | . . . . . . . . 11 . Propulsion Burnouts . | . . . . . . . . . . Robots Hopped 4 | . . . . . . . . 4 . Cave-ins Triggered . | . . . . . . . . . . Exploration Rate (%) 35 | 23 91 63 60 21 29 21 26 8 9 Regions Visited 9 Branch Regions . Pre-discovered Areas . | . . . . . . . . . . Known Exits Taken 4 | . . . . 1 1 1 1 . . Unknown Exits Taken 5 | 1 1 1 1 . . . . 1 . Scrap Searched . | . . . . . . . . . . Spaces Dug 44 | . . . . 14 16 3 11 . . Terrain Destroyed 239 | . . . 8 36 36 40 118 . 1 Melee . | . . . . . . . . . . Projectile 88 | . . . . 5 36 26 20 . 1 AOE 151 | . . . 8 31 . 14 98 . . Terrain Rammed . | . . . . . . . . . . Walls Destroyed . | . . . . . . . . . . Machines Disabled . | . . . . . . . . . . Actions | -11 -10 -9 -8 -7 -6 -5 -4 -3 -2 --------- Run | Yrd Mat Mat Mat Fac Fac Fac Fac Res Res Total 8504 | 494 982 766 1206 1013 1489 785 989 232 548 Wait 1129 | 205 71 17 189 181 259 12 43 1 151 Move 6335 | 271 792 646 847 685 1019 660 820 222 373 Hop 3 | . . . . . . . . 3 . Pick Up 101 | 6 19 13 13 12 11 13 11 1 2 Fast Attach 72 | 6 4 7 12 5 9 7 13 4 5 Attach 43 | . . 4 8 3 11 5 11 . 1 Detach 11 | . . 1 2 1 2 3 1 . 1 Swap 57 | . 3 4 10 9 16 5 10 . . Drop 119 | . 16 20 21 12 13 20 13 1 3 Fire 632 | 6 76 54 103 105 149 60 67 . 12 Melee . | . . . . . . . . . . Ram . | . . . . . . . . . . Kick . | . . . . . . . . . . Crush 2 | . 1 . 1 . . . . . . Escape Stasis . | . . . . . . . . . . Rewire . | . . . . . . . . . . Trap . | . . . . . . . . . . Miscellaneous . | . . . . . . . . . . Route ------- -11/Scrapyard -10/Materials (discovered 4 exits: *Mat x3 / [*Min]) -9/Materials (discovered 4 exits: *Mat x2 / [*Min x2]) -8/Materials -7/Factory -6/Factory (discovered 2 exits: *Fac / *Low) -5/Factory (discovered 3 exits: *Fac / *Upp x2) -4/Factory (discovered 4 exits: *Res x4) -3/Research -2/Research History --------- Turn | Location | Event 13 | -11/Scrapyard | Discovered new exit (range 16) 562 | -11/Scrapyard | Entered Materials 563 | -10/Materials | Build established: Mutant 613 | -10/Materials | Discovered new exit (range 8) 679 | -10/Materials | Discovered new exit (range 16) 931 | -10/Materials | Discovered new exit (range 16) 1379 | -10/Materials | Discovered new exit (range 5) 1989 | -10/Materials | Entered another Materials area 1989 | -9/Materials | Evolved 2 slots: Propulsion x1, Utility x1 2061 | -9/Materials | Discovered new exit (range 14) 2364 | -9/Materials | Discovered new exit (range 12) 2732 | -9/Materials | Discovered new exit (range 15) 2909 | -9/Materials | Discovered new exit (range 12) 2996 | -9/Materials | Entered another Materials area 2996 | -8/Materials | Evolved 2 slots: Utility x2 3514 | -8/Materials | Discovered new exit (range 11) 4350 | -8/Materials | Core integrity fell below 50% 4443 | -8/Materials | Found Prototype Device 4499 | -8/Materials | Repaired Arm. Wheel 4741 | -8/Materials | Entered Factory 4741 | -7/Factory | Evolved 2 slots: Utility x2 4743 | -7/Factory | Identified Active Sensor Suite 5049 | -7/Factory | Build established: Skirmisher 5259 | -7/Factory | Garrison activated, responded to threat 5811 | -7/Factory | Repaired Arm. Treads 6014 | -7/Factory | Discovered new exit (range 5) 6019 | -7/Factory | Identified exit to Factory 6144 | -7/Factory | Entered another Factory area 6144 | -6/Factory | Evolved 2 slots: Propulsion x1, Utility x1 6307 | -6/Factory | Fabricated Arm. Wheel (x2) 6743 | -6/Factory | Discovered new exit (range 9) 6763 | -6/Factory | Identified exit to Lower Caves 7095 | -6/Factory | Cargo convoy interrupted 7544 | -6/Factory | Search patrols dispatched 8006 | -6/Factory | Core integrity fell below 50% 8026 | -6/Factory | Lost 4 parts (3n1w) 8068 | -6/Factory | Discovered new exit (range 15) 8070 | -6/Factory | Found Active Sensor Suite 8113 | -6/Factory | Identified exit to Factory 8116 | -6/Factory | Entered another Factory area 8116 | -5/Factory | Evolved 2 slots: Power x1, Utility x1 8226 | -5/Factory | Build established: Scavenger-Skirmisher 8335 | -5/Factory | Discovered new exit (range 6) 8356 | -5/Factory | Identified exit to Upper Caves 8716 | -5/Factory | Search patrols dispatched 8846 | -5/Factory | Discovered exit to Upper Caves (range 10) 9104 | -5/Factory | Discovered new exit (range 4) 9109 | -5/Factory | Identified exit to Factory 9236 | -5/Factory | Entered another Factory area 9236 | -4/Factory | Evolved 2 slots: Utility x2 9463 | -4/Factory | Build established: Skirmisher 9986 | -4/Factory | First assault squad dispatched 10049 | -4/Factory | Fabricated M-13 Machinist? 10098 | -4/Factory | Destroyed 11 combat bots 10125 | -4/Factory | Released all parts (6) 10144 | -4/Factory | Lost 14 parts (2p3n6u3w) 10163 | -4/Factory | Identified exit to Research 10283 | -4/Factory | Core integrity fell below 50% 10296 | -4/Factory | Entered Research 10296 | -3/Research | Evolved 2 slots: Propulsion x1, Utility x1 10308 | -3/Research | Lost 4 parts (1p2n1w) 10385 | -3/Research | Discovered new exit (range 11) 10391 | -3/Research | Found Fusion Bomb Launcher 10397 | -3/Research | Entered another Research area 10397 | -2/Research | Evolved 2 slots: Propulsion x1, Utility x1 10489 | -2/Research | Build established: Mutant 10866 | -2/Research | Self-destructed Last Messages --------------- 10775_ Door malfunctions. 10784_ U-05 Engineer repairs door. 10789_ Adv. Power Amplifier destroyed. 10794_ Slug penetrates Wall. 10794_ Penetrated by Slug. 10799_ HERF Cannon destroyed. 10811_ R-10 Processor collects Adv. Sensor Array. 10814_ R-10 Processor collects Corrupted Unknown Reactor. 10829_ Penetrated by Slug. 10831_ Neutrino Core destroyed. 10832_ Slug penetrates Wall. 10833_ Penetrated by Slug. 10840_ Acquired Enh. Nova Cannon. 10852_ Triggered Alarm Trap. 10852_ An alarm sounds. 10852_ ALERT: Alarm triggered, dispatching investigation squad. 10857_ Penetrated by Slug. 10862_ Slug penetrates Wall. 10864_ Destroyed Gamma Rifle. 10864_ Slug penetrates Wall. Map ----- +----------------------------------------------------+ | ???????????????????????????????????????? | | ???????????????????????????????????????? | | ???????????????????????????????????????? | | ???????????????????????????????????????? | | ???????????????????????????????????????? | | ???????????????????????????????????????? | | ???????????????????????????????????????? | | ???????????????????????????????????????? | | ???????????????????????????????????????? | | ???????????????????????????????????????? | | ???????????????????????????????????????? | | ???????????????????????????????????????? | | ???????????????????????????????????????? | | ???????????????????????????????????????? | | ???????????????????????????????????????? | | ?????????????????????##########????????? | | ?????????????????????# ????????? | | ?????????????????????# ????????? | | ?????????????????????# #??????## | | ?????????????????????# """#?????# # | | ?????????????????????# """#????? # | | ?????????????????????# """#???? # | | ?????????????????????? ????? # | | ???????????????????????? ??????!! # | | ???????????????????????###+###?????! # | | ???????????????????????#!@ ;##### # | | ???????????????????????# # # | | ???????????????????????# p + # | | ???????????????????????# ####Y# # | | ???????????????????????## ##??# # # | | ????????????????????????# #???# #? # | | ????????????????????????# #???# #? # | | ????????????????????????#p #####+##?#### | | ????????????????????????#hh# #????? | | ????????????????????????/w # #????? | | ????????????????????????# h# *#????? | | ????????????????????????# + #????? | | ????????????????????????# # #????? | | ????????????????????????# # = #????? | | ???????????????####+????# ########????? | | ???????????????# ??# #???????????? | | ????????????#### ??# #???????????? | | ???????????? ??# #???????????? | | ??????????? H ### #???????????? | | ???????????????# ##??????????? | | ???????????????# "#??????????? | | ???????????????## "#??????????? | | ????????????????# % ^ ##??????????? | | ????????????????# % ##??????????? | | ????????????????# #??????????? | +----------------------------------------------------+ Best States ------------- Heat Dissipation 74 Coolant Potential 50 Energy Generation 29 Energy Capacity 1700 Matter Stores 300 Matter Capacity 300 Sight Range 16 Robot Scan Range 20 Terrain Scan Density 210 Jamming Range 16 Power Amplification 30 Additional Mass Support 9 Armor Coverage 1200 Resistance: KI 30 Utility Shielding 66 Weapon Cycling 20 Evasion (%) 63 Targeting Accuracy 8 Target Analysis 6 Core Analysis 6 Recoil Reduction 3 Offensive Hacking 26 Item Schematics ----------------- Arm. Wheel | -9/Materials | Scanalyzed Hacking Suite | -9/Materials | Scanalyzed Lgt. Neutrino Core | -4/Factory | Scanalyzed Mic. Antimatter Reactor | -4/Factory | Hacked Robot Schematics ------------------ M-13 Machinist | -10/Materials | Hacked Fabricated ------------ Arm. Wheel | x2 | -6/Factory M-13 Machinist | x1 | -4/Factory Alien Tech Used ----------------- None Achievements -------------- None Challenges ------------ None Game ------ Seed MiningLaserLance Manual? 0 Play Time 01:39:29 Cumulative 677.7 hours Start 2024.03.25 @ 09:38:48 End 2024.03.25 @ 11:15:36 Sessions 1 Manual Loads 0 Difficulty Rogue Special Mode None Game No. 421 Rogue 421 Adventurer 0 Explorer 0 Win Type - Total 9 Types 6/0/1/1/1/0/0/0/0 Lore% 82 Gallery% 87 Achievement% 74 Wizard Run 0 Options --------- Layout 0 ASCII 0 Keyboard 0 Movement Mouse Keybinds 1 Fullscreen 2 Font 24/Smallcaps Map View 76x50 Zoom Use 0% Tactical HUD 1 Map Filters NONE Filters NONE Steam 1 RUN: 2b652b31-ac46-4e3e-af1a-e87a426031a9